bitfinex/quotes_ETHUSD_20241001
["timestamp","ask_amount","ask_price","bid_price","bid_amount"]
[1727767886003,0.79031376,2654.4,2654.0,0.7873]
[1727767886170,0.79031376,2654.3,2654.1,0.61542024]
[1727767888426,4.55780376,2654.3,2654.2,0.04591755]
[1727767888626,7.02486642,2654.3,2653.7,0.7525]
[1727767888770,4.55804994,2654.1,2653.7,0.7525]
[1727767889126,5.02928994,2654.0,2653.8,0.04627097]
[1727767889415,7.04374888,2653.9,2653.8,0.04627097]
[1727767889619,7.04374888,2653.9,2653.2,0.7553]
[1727767889620,3.76848,2653.6,2653.2,0.7553]
[1727767889920,3.76882,2653.4,2653.3,0.04661681]
[1727767890275,4.55919283,2653.4,2653.1,1.884]
[1727767890608,4.55919283,2653.4,2653.2,0.04668599]
[1727767890609,4.55934283,2653.3,2653.2,0.04668599]
[1727767891379,3.76897,2653.3,2653.2,0.04668599]
[1727767891607,5.12455739,2653.3,2653.2,0.04668599]
[1727767891779,4.33439721,2653.3,2653.2,0.04668599]
[1727767891978,5.42572925,2653.3,2653.2,0.04668599]
[1727767892208,5.03012142,2653.3,2653.2,0.04668599]
[1727767892780,5.03010324,2653.3,2653.2,0.04668599]
[1727767893012,4.24017,2653.3,2653.2,0.04668599]
[1727767893214,5.12413479,2653.3,2653.2,0.04668599]
[1727767893520,5.12413466,2653.3,2653.2,0.04668599]
[1727767893897,5.02990767,2653.3,2653.2,0.04668599]
[1727767894293,5.12413472,2653.3,2653.2,0.04668599]
[1727767894509,5.02990767,2653.3,2653.2,0.04668599]
[1727767895108,1.26093767,2653.3,2653.2,0.04668599]
[1727767895312,0.4712,2653.3,2653.2,0.04668599]
[1727767896013,4.24009,2653.3,2653.2,0.04668599]
[1727767896604,0.4712,2653.3,2653.2,0.04668599]
[1727767896923,4.24009,2653.3,2653.2,0.04668599]
[1727767897284,0.4712,2653.3,2653.2,0.04668599]
[1727767898323,4.24009,2653.3,2653.2,0.04668599]
[1727767901919,0.4712,2653.3,2653.2,0.04668599]
[1727767903288,4.24009,2653.3,2653.2,0.04668599]
[1727767904349,3.76889,2653.3,2653.2,0.04668599]
[1727767906413,7.53765,2653.4,2653.2,0.04668599]
[1727767906799,3.76889,2653.3,2653.2,0.04668599]
[1727767913296,3.76876,2653.4,2653.2,0.04668599]
[1727767913297,7.53761,2653.4,2653.2,0.04668599]
[1727767913497,3.76876,2653.4,2653.2,0.04668599]
[1727767913936,7.53761,2653.4,2653.2,0.04668599]
[1727767914137,3.76876,2653.4,2653.2,0.04668599]
[1727767915399,3.76889,2653.3,2653.2,0.04668599]
[1727767925286,4.55862767,2653.3,2653.2,0.04668599]
[1727767925670,3.76889,2653.3,2653.2,0.04668599]
[1727767926269,4.55862767,2653.3,2653.2,0.04668599]
[1727767926599,3.76889,2653.3,2653.2,0.04668599]
[1727767927295,4.55862767,2653.3,2653.2,0.04668599]
[1727767930296,3.76889,2653.3,2653.2,0.04668599]
[1727767931216,4.95444925,2653.3,2653.2,0.04668599]
[1727767932585,3.76889,2653.3,2653.2,0.04668599]
[1727767932788,8.31193463,2653.3,2653.2,0.04668599]
[1727767932998,7.10816096,2653.3,2653.2,0.04668599]
[1727767933182,14.5084617,2653.3,2653.2,0.04668599]
[1727767933521,4.0212,2653.2,2653.1,1.884]
[1727767933729,11.94770987,2653.2,2653.1,1.884]
[1727767934027,0.4712,2653.1,2652.4,19.43]
[1727767934229,3.77042,2652.3,2652.1,0.7529]
[1727767934475,5.35425303,2652.3,2652.2,19.43]
[1727767935320,5.35371547,2652.3,2652.2,19.43]
[1727767936485,3.77045,2652.2,2652.1,0.7529]
[1727767936682,3.77077,2652.0,2651.8,0.7751]
[1727767936924,0.79132377,2651.9,2651.8,0.7751]
[1727767937281,0.79132377,2652.0,2651.8,0.7751]
[1727767938281,4.65633088,2652.0,2651.6,0.8288]
[1727767938483,4.65633088,2652.0,2651.0,19.43]
[1727767938484,0.79132377,2651.7,2651.5,0.8288]
[1727767939332,3.7712,2651.7,2651.5,0.8288]
[1727767939488,4.56234377,2651.8,2651.5,0.8288]
[1727767939687,8.33346377,2651.8,2651.5,0.8288]
[1727767940033,3.86544497,2651.7,2651.6,0.04168969]
[1727767940189,3.77143,2651.6,2651.3,0.77]
[1727767940542,3.77143,2651.6,2651.4,0.04182824]
[1727767942924,3.7714,2651.6,2651.4,0.04182824]
[1727767943933,3.8657382,2651.5,2651.4,0.04182824]
[1727767944254,3.8657382,2651.5,2651.0,0.7759]
[1727767944255,1.69319062,2651.5,2651.0,0.7759]
[1727767944448,3.77173,2651.4,2651.1,0.04244384]
[1727767944652,3.772,2651.2,2650.8,0.7877]
[1727767944853,3.772,2651.2,2650.9,0.04267737]
[1727767945778,3.77216,2651.0,2650.9,0.04267737]
[1727767946836,3.77238,2650.9,2650.6,0.7983]
[1727767947032,3.77216,2651.0,2650.7,0.042816]
[1727767947550,3.77231,2650.9,2650.7,0.042816]
[1727767947745,3.77216,2651.0,2650.7,0.042816]
[1727767947977,3.77238,2650.9,2650.7,0.042816]
[1727767948337,3.77244,2650.8,2650.7,0.042816]
[1727767953785,4.526914,2650.8,2650.7,0.042816]
[1727767953985,4.998114,2650.8,2650.7,0.042816]
[1727767954222,3.7726,2650.7,2650.4,0.127173]
[1727767954584,3.77274,2650.6,2650.4,0.127173]
[1727767954788,3.7726,2650.7,2650.4,0.127173]
[1727767955214,3.77276,2650.6,2650.4,0.127173]
[1727767955418,3.7726,2650.7,2650.4,0.127173]
[1727767955628,3.77273,2650.6,2650.4,0.127173]
[1727767956123,3.77287,2650.5,2650.4,0.127173]
[1727767957323,7.54528,2650.7,2650.4,0.127173]
[1727767957531,3.7726,2650.7,2650.4,0.127173]
[1727767961099,3.77275,2650.6,2650.4,0.127173]
[1727767962296,3.77287,2650.5,2650.4,0.127173]
[1727767963325,5.46610139,2650.5,2650.4,0.127173]
[1727767963635,5.46610139,2650.5,2650.4,0.17063846]
[1727767969201,5.93730139,2650.5,2650.4,0.17063846]
[1727767969443,6.90830653,2650.5,2650.4,0.17063846]
[1727767970520,7.45830653,2650.5,2650.4,0.17063846]
[1727767971107,6.90830653,2650.5,2650.4,0.17063846]
[1727767971312,5.30940411,2650.5,2650.4,0.17063846]
[1727767972058,6.90830653,2650.5,2650.4,0.17063846]
[1727767977026,10.45830653,2650.5,2650.4,0.17063846]
[1727767977239,10.36397756,2650.5,2650.4,0.17063846]
[1727767977455,10.36397756,2650.5,2650.4,0.127173]
[1727767978365,11.15530133,2650.5,2650.4,0.127173]
[1727767978519,11.55096321,2650.5,2650.4,0.127173]
[1727767978721,11.94727303,2650.5,2650.4,0.127173]
[1727767979947,10.36397756,2650.5,2650.4,0.127173]
[1727767980634,36.57433156,2650.5,2650.4,0.127173]
[1727767980958,30.88630856,2650.5,2650.4,0.127173]
[1727767981130,27.03915356,2650.5,2650.4,0.127173]
[1727767981520,18.47443056,2650.5,2650.4,0.127173]
[1727767981735,17.30983556,2650.5,2650.4,0.127173]
[1727767982156,19.27738204,2650.5,2650.4,0.127173]
[1727767982363,19.27784662,2650.5,2650.4,0.127173]
[1727767982659,17.30983556,2650.5,2650.4,0.127173]
[1727767983159,19.27740611,2650.5,2650.4,0.127173]
[1727767983392,17.30983556,2650.5,2650.4,0.127173]
[1727767984494,18.68967573,2650.5,2650.4,0.127173]
[1727767984693,17.30983556,2650.5,2650.4,0.127173]
[1727767984848,18.68967664,2650.5,2650.4,0.127173]
[1727767985043,17.30983556,2650.5,2650.4,0.127173]
[1727767985477,6.77344,2650.1,2650.0,20.0]
[1727767985650,11.06287873,2650.1,2650.0,20.0]
[1727767985856,10.96852174,2650.1,2650.0,20.0]
[1727767986191,9.39354242,2650.1,2650.0,20.0]
[1727767986377,10.96852174,2650.1,2650.0,20.0]
[1727767986681,12.63957633,2650.1,2650.0,20.0]
[1727767987088,11.06459701,2650.1,2650.0,20.0]
[1727767987267,12.63957633,2650.1,2650.0,20.0]
[1727767989385,11.06459701,2650.1,2650.0,20.0]
[1727767989604,12.64017923,2650.1,2650.0,20.0]
[1727767989751,11.06459701,2650.1,2650.0,20.0]
[1727767989954,13.03372988,2650.1,2650.0,20.0]
[1727767990252,11.06459701,2650.1,2650.0,20.0]
[1727767990453,13.03372988,2650.1,2650.0,20.0]
[1727767991107,11.06459701,2650.1,2650.0,20.0]
[1727767991407,10.02029183,2650.1,2650.0,20.0]
[1727767991594,11.61919425,2650.1,2650.0,20.0]
[1727767992374,10.04339701,2650.1,2650.0,20.0]
[1727767992873,12.16919425,2650.1,2650.0,20.0]
[1727767993375,8.89923724,2650.1,2650.0,20.0]
[1727767993713,10.10449173,2650.1,2650.0,20.0]
[1727767994002,10.10449173,2650.1,2650.0,20.8074]
[1727767994003,9.55449173,2650.1,2650.0,20.8074]
[1727767994405,9.55449173,2650.1,2650.0,20.85029128]
[1727767994571,4.56166844,2650.1,2650.0,20.85029128]
[1727767994765,3.77344,2650.1,2650.0,22.93532041]
[1727767995004,3.7733,2650.2,2650.1,0.7667]
[1727767995377,3.7733,2650.2,2650.1,0.80952193]
[1727767995582,3.77317,2650.3,2650.1,0.80952193]
[1727767995797,3.7733,2650.2,2650.1,0.80952193]
[1727768000318,4.56152844,2650.2,2650.1,0.80952193]
[1727768000827,3.7733,2650.2,2650.1,0.80952193]
[1727768001830,0.78822844,2650.2,2650.1,0.80952193]
[1727768002320,4.56152844,2650.2,2650.1,0.80952193]
[1727768002516,3.7733,2650.2,2650.1,0.80952193]
[1727768003013,4.56152844,2650.2,2650.1,0.80952193]
[1727768004275,0.78822844,2650.2,2650.1,0.80952193]
[1727768005275,0.78972157,2650.2,2650.1,0.80952193]
[1727768006284,4.56302157,2650.2,2650.1,0.80952193]
[1727768007026,3.7733,2650.2,2650.1,0.80952193]
[1727768007515,4.95544931,2650.2,2650.1,0.80952193]
[1727768008316,1.18214931,2650.2,2650.1,0.80952193]
[1727768009887,4.95539931,2650.3,2650.1,0.80952193]
[1727768010917,1.18214931,2650.2,2650.1,0.80952193]
[1727768011326,4.95538931,2650.3,2650.1,0.80952193]
[1727768012028,0.79037646,2650.2,2650.1,2.89047412]
[1727768012233,0.59278234,2650.3,2650.2,0.7948]
[1727768012527,0.59278234,2650.3,2650.2,0.83749074]
[1727768014739,0.59278234,2650.3,2650.2,4.58549074]
[1727768014920,1.18214931,2650.5,2650.3,0.7604]
[1727768015123,1.18214931,2650.6,2650.4,0.7604]
[1727768015441,1.18214931,2650.6,2650.4,0.80287756]
[1727768015592,1.18214931,2650.6,2650.5,1.000578]
[1727768015789,1.18214931,2650.6,2650.5,1.04298623]
[1727768016943,1.18214931,2650.6,2650.5,0.80280823]
[1727768018538,4.95474931,2650.7,2650.5,0.80280823]
[1727768019901,1.18214931,2650.7,2650.6,0.78]
[1727768020098,4.95438931,2651.0,2650.6,0.8223389]
[1727768020297,4.95438931,2651.0,2650.8,0.8319]
[1727768020495,1.18214931,2651.0,2650.9,0.04209757]
[1727768020736,1.18214931,2651.1,2650.9,0.04209757]
[1727768020957,1.18214931,2651.1,2651.0,0.8319]
[1727768021095,5.34772724,2651.2,2651.0,0.87385635]
[1727768021096,1.18214931,2651.2,2651.0,0.87385635]
[1727768021297,4.95399931,2651.3,2651.0,0.87385635]
[1727768021505,4.95360931,2651.5,2651.1,1.59890242]
[1727768021730,4.95360931,2651.5,2651.1,0.62030724]
[1727768021731,3.7716,2651.4,2651.1,0.62030724]
[1727768021953,3.7716,2651.4,2651.2,0.04181262]
[1727768022099,3.7716,2651.4,2651.0,0.8319]
[1727768022298,3.7716,2651.4,2651.1,0.04182543]
[1727768023632,4.56078098,2651.6,2651.1,0.04182543]
[1727768023840,7.54281,2651.6,2651.1,0.04182543]
[1727768024142,3.77137,2651.6,2651.2,0.8314]
[1727768024343,3.77137,2651.6,2651.2,0.87315613]
[1727768024836,3.77147,2651.5,2651.2,0.87315613]
[1727768027119,3.7716,2651.4,2651.2,0.87315613]
[1727768027322,3.77147,2651.5,2651.2,0.87315613]
[1727768029155,3.77173,2651.3,2651.2,0.04175613]
[1727768029308,3.77173,2651.3,2650.9,0.7534]
[1727768029309,3.77188,2651.2,2650.9,0.7534]
[1727768029511,0.09430316,2651.1,2651.0,0.04151727]
[1727768029736,3.86631316,2651.1,2651.0,0.04151727]
[1727768029919,3.77188,2651.2,2651.0,0.04151727]
[1727768030332,3.77201,2651.1,2651.0,0.04151727]
[1727768030509,4.20561846,2651.2,2650.7,0.8117]
[1727768030714,3.77219,2651.0,2650.8,0.04165589]
[1727768031042,3.77219,2651.0,2650.7,0.8117]
[1727768031255,3.77195,2651.2,2650.9,0.04158658]
[1727768031415,3.86626195,2651.2,2650.8,0.04165589]
[1727768031608,3.77203,2651.1,2651.0,0.04151727]
[1727768031809,3.77203,2651.1,2650.7,0.8117]
[1727768032192,3.77195,2651.2,2650.7,1.43004624]
[1727768032349,3.77195,2651.2,2650.8,0.04165589]
[1727768032514,3.77195,2651.2,2650.7,1.43004624]
[1727768032711,3.77195,2651.2,2650.8,0.04165589]
[1727768032941,3.77195,2651.2,2650.7,1.43004624]
[1727768033247,3.77195,2651.2,2650.9,0.04158658]
[1727768033449,3.77195,2651.2,2650.8,0.04165589]
[1727768033655,3.77195,2651.2,2651.0,0.04151727]
[1727768033953,3.77195,2651.2,2651.1,0.04144797]
[1727768034150,3.77195,2651.2,2650.7,0.8117]
[1727768034309,7.54392,2651.2,2651.1,0.04144797]
[1727768034510,4.6524031,2651.2,2650.7,0.8117]
[1727768034851,3.77195,2651.2,2650.8,0.04165589]
[1727768035215,7.5439,2651.2,2650.7,0.8117]
[1727768035426,7.5439,2651.2,2650.9,0.04158658]
[1727768035622,3.77204,2651.1,2650.7,0.8117]
[1727768035925,3.77195,2651.2,2650.7,0.8117]
[1727768036129,3.77231,2650.9,2650.8,0.04165589]
[1727768036429,3.77244,2650.8,2650.4,0.8253]
[1727768036655,3.77258,2650.7,2650.4,0.8253]
[1727768038475,3.77258,2650.7,2650.5,0.04201273]
[1727768038827,3.77244,2650.8,2650.5,0.04201273]
[1727768039029,4.56166098,2651.0,2650.6,0.8226]
[1727768039228,4.56166098,2651.0,2650.6,0.86454341]
[1727768039425,3.77237,2650.9,2650.6,0.86454341]
[1727768042532,4.56178098,2650.9,2650.6,0.86454341]
[1727768042733,3.77249,2650.8,2650.6,0.86454341]
[1727768044481,0.88372342,2650.9,2650.6,0.86454341]
[1727768044800,0.78941098,2650.9,2650.6,0.86454341]
[1727768045082,4.56172098,2650.9,2650.6,0.86454341]
[1727768045685,3.77248,2650.8,2650.6,0.86454341]
[1727768045978,5.03291098,2650.9,2650.6,0.86454341]
[1727768046285,4.56171098,2650.9,2650.6,0.86454341]
[1727768047086,3.77255,2650.8,2650.6,0.04194341]
[1727768047379,3.77258,2650.7,2650.3,0.7823]
[1727768047749,3.77258,2650.7,2650.3,1.7181456]
[1727768048756,0.78941098,2650.8,2650.6,2.41900242]
[1727768048946,4.56145098,2651.1,2650.7,0.8201]
[1727768049285,3.77216,2651.0,2650.7,0.8201]
[1727768050146,0.78941098,2651.1,2650.7,0.8201]
[1727768050343,0.78941098,2651.1,2650.7,5.429189]
[1727768050582,0.78941098,2651.1,2650.7,1.656659]
[1727768050786,4.56144098,2651.1,2650.7,1.656659]
[1727768050991,0.78941098,2651.1,2650.7,1.656659]
[1727768051555,0.78941098,2651.0,2650.7,1.656659]
[1727768051790,0.78941098,2651.0,2650.8,0.70282814]
[1727768052587,3.77231,2650.9,2650.5,0.7898]
[1727768052904,3.77268,2650.7,2650.2,0.7987]
[1727768053074,3.77294,2650.5,2650.2,0.7987]
[1727768053391,4.56235098,2650.5,2650.3,0.04085406]
[1727768053600,4.56235098,2650.5,2650.0,20.7987]
[1727768053820,0.78941098,2650.4,2650.0,24.61178269]
[1727768054484,3.77316,2650.3,2650.0,24.61178269]
[1727768054801,0.78941098,2650.4,2650.0,24.61178269]
[1727768054972,4.56245098,2650.4,2650.0,24.61178269]
[1727768056295,0.78941098,2650.3,2650.0,24.61178269]
[1727768057396,4.56258098,2650.3,2650.0,24.61178269]
[1727768057604,0.78941098,2650.3,2650.0,24.61178269]
[1727768058515,0.78941098,2650.3,2650.1,2.75413578]
[1727768058715,0.78941098,2650.4,2650.1,2.75413578]
[1727768059207,0.78941098,2650.3,2650.1,2.75413578]
[1727768061705,4.56259098,2650.3,2650.0,20.7987]
[1727768062015,0.78941098,2650.3,2650.0,20.7987]
[1727768062384,0.78941098,2650.2,2650.0,20.7987]
[1727768062608,0.78941098,2650.3,2650.0,20.7987]
[1727768063114,4.56257098,2650.3,2650.0,20.7987]
[1727768063428,0.78941098,2650.2,2650.0,20.0]
[1727768063627,4.56285098,2650.1,2650.0,20.0]
[1727768064122,3.77344,2650.1,2650.0,20.0]
[1727768064479,4.56224855,2650.1,2650.0,20.0]
[1727768065323,3.77344,2650.1,2650.0,20.0]
[1727768065675,4.95558931,2650.1,2650.0,20.0]
[1727768066416,3.77344,2650.1,2650.0,20.0]
[1727768067519,4.56188686,2650.1,2650.0,20.0]
[1727768067817,6.18522783,2650.1,2650.0,20.0]
[1727768068189,6.27957228,2650.1,2650.0,20.0]
[1727768068520,5.47427852,2650.1,2650.0,20.04030446]
[1727768068676,7.05007576,2650.1,2650.0,20.04030446]
[1727768068882,5.47427852,2650.1,2650.0,20.04030446]
[1727768069518,6.18511706,2650.1,2650.0,20.04030446]
[1727768069783,4.56148809,2650.1,2650.0,20.04030446]
[1727768069935,4.56148809,2650.1,2650.0,20.0]
[1727768070222,3.77344,2650.1,2650.0,20.04057966]
[1727768070429,4.56146407,2650.1,2650.0,20.04057966]
[1727768071191,3.77344,2650.1,2650.0,20.04057966]
[1727768071401,4.56156166,2650.1,2650.0,20.04057966]
[1727768072195,3.77344,2650.1,2650.0,20.04057966]
[1727768072404,4.56153178,2650.1,2650.0,20.04057966]
[1727768073091,0.78809178,2650.1,2650.0,20.04057966]
[1727768073511,4.56153178,2650.1,2650.0,20.04057966]
[1727768073912,3.77344,2650.1,2650.0,20.04057966]
[1727768074117,4.95547854,2650.1,2650.0,20.04057966]
[1727768078548,1.18203854,2650.1,2650.0,20.04057966]
[1727768078841,1.18203854,2650.2,2650.0,20.04057966]
[1727768079043,0.78809872,2650.1,2650.0,20.04057966]
[1727768080648,4.56153872,2650.1,2650.0,20.04057966]
[1727768082054,0.78809872,2650.1,2650.0,20.04057966]
[1727768082459,4.56153872,2650.1,2650.0,20.04057966]
[1727768083457,0.78809872,2650.1,2650.0,20.04057966]
[1727768084559,4.56153872,2650.1,2650.0,20.04057966]
[1727768084717,0.78809872,2650.1,2650.0,20.04057966]
[1727768084916,0.78809872,2650.3,2650.1,3.77344]
[1727768085157,1.18203854,2650.4,2650.2,0.85317416]
[1727768085158,0.78809872,2650.4,2650.2,0.85317416]
[1727768085357,0.78809872,2650.5,2650.2,0.85317416]
[1727768085719,0.78809872,2650.5,2650.3,1.60297192]
[1727768085919,0.78809872,2650.6,2650.4,0.7574]
[1727768086123,0.78809872,2650.6,2650.4,1.41485435]
[1727768087427,0.78809872,2650.7,2650.5,2.36037192]
[1727768087624,0.78809872,2650.7,2650.6,0.7574]
[1727768087928,0.78809872,2650.8,2650.6,0.80266693]
[1727768091391,0.78670348,2650.8,2650.6,0.80266693]
[1727768092282,4.55916348,2650.8,2650.6,0.80266693]
[1727768092475,0.78670348,2650.8,2650.6,0.80266693]
[1727768092986,0.78670348,2650.8,2650.6,0.04526693]
[1727768093194,4.55915348,2650.8,2650.4,0.7641]
[1727768093362,0.78670348,2650.8,2650.7,0.04510977]
[1727768093569,0.78670348,2650.8,2650.5,0.61401919]
[1727768093788,0.78670348,2650.8,2650.6,0.04521885]
[1727768096570,1.18203854,2651.0,2650.7,0.7952]
[1727768096769,4.95420854,2651.0,2650.8,0.04501672]
[1727768096970,3.77217,2651.0,2650.7,0.7952]
[1727768097281,4.95420854,2651.0,2650.8,0.04501672]
[1727768097608,4.95420854,2651.0,2650.7,0.7952]
[1727768097765,4.95420854,2651.0,2650.9,0.04493008]
[1727768098110,4.95420854,2651.0,2650.7,0.7952]
[1727768098269,4.95420854,2651.0,2650.9,0.04493008]
[1727768098769,4.95420854,2651.0,2650.7,0.7952]
[1727768098965,3.77217,2651.0,2650.8,0.04501672]
[1727768099169,3.77217,2651.0,2650.7,0.7952]
[1727768099367,3.77217,2651.0,2650.8,0.04501672]
[1727768099566,3.77217,2651.0,2650.7,0.7952]
[1727768099827,3.77217,2651.0,2650.9,0.04493008]
[1727768100060,3.77217,2651.0,2650.7,0.7952]
[1727768100302,3.77217,2651.0,2650.9,0.04493008]
[1727768100471,3.77217,2651.0,2650.8,0.04501672]
[1727768100677,7.54445,2651.0,2650.7,0.7952]
[1727768100884,6.45563712,2651.0,2650.9,0.04493008]
[1727768101105,3.7723,2650.9,2650.8,0.04501672]
[1727768101317,3.7725,2650.8,2650.4,0.8314]
[1727768101611,4.56113446,2650.9,2650.4,0.8314]
[1727768103075,0.78883446,2650.9,2650.4,0.8314]
[1727768103369,0.78883446,2650.9,2650.6,0.8023]
[1727768103565,0.78883446,2651.0,2650.7,5.37548192]
[1727768103970,0.78883446,2651.1,2650.8,0.8023]
[1727768104171,4.56085446,2651.1,2650.8,0.8023]
[1727768104486,0.78883446,2651.1,2650.8,0.8023]
[1727768104684,0.78883446,2651.1,2650.8,1.42009719]
[1727768104898,0.78883446,2651.2,2650.8,5.19251719]
[1727768105299,0.78883446,2651.2,2650.8,5.19242719]
[1727768105470,4.56066446,2651.3,2650.8,5.19242719]
[1727768105674,8.33249446,2651.3,2650.8,5.19242719]
[1727768105881,4.56073446,2651.2,2650.8,1.42009719]
[1727768106081,0.78883446,2651.2,2650.8,1.42009719]
[1727768107394,3.7719,2651.2,2650.8,1.42009719]
[1727768109309,3.77209,2651.1,2650.8,0.8023]
[1727768110109,4.24308,2651.2,2650.8,0.8023]
[1727768110340,3.77211,2651.1,2650.8,0.8023]
[1727768111391,4.24307,2651.2,2650.8,0.8023]
[1727768112032,3.77187,2651.2,2650.8,0.8023]
[1727768112833,3.77187,2651.2,2650.8,1.79734819]
[1727768113535,3.77187,2651.2,2650.9,0.05371993]
[1727768114727,0.78883446,2651.3,2650.9,0.05371993]
[1727768114888,0.78883446,2651.3,2651.0,0.8097]
[1727768115094,0.78883446,2651.3,2651.0,0.86324293]
[1727768116824,4.56057446,2651.3,2651.0,0.86324293]
[1727768116987,0.78883446,2651.3,2651.0,0.86324293]
[1727768117593,4.56058446,2651.3,2651.0,0.86324293]
[1727768118797,3.77191,2651.2,2651.0,0.86324293]
[1727768119407,3.77201,2651.1,2651.0,0.05354293]
[1727768119611,4.56084446,2651.1,2651.0,0.05354293]
[1727768119871,4.56084446,2651.1,2650.7,0.771]
[1727768120145,4.56084446,2651.1,2651.0,0.05347372]
[1727768120311,4.56084446,2651.1,2650.7,0.771]
[1727768120938,4.56084446,2651.1,2650.8,0.05368164]
[1727768121313,4.56084446,2651.1,2650.7,0.771]
[1727768121507,0.78883446,2651.1,2650.9,0.05357767]
[1727768121707,0.78883446,2651.1,2650.8,0.05368164]
[1727768121910,5.71702148,2651.1,2651.0,0.05347372]
[1727768122114,6.11022556,2651.1,2650.9,0.05357767]
[1727768122315,6.11022556,2651.1,2651.0,0.04861247]
[1727768122531,1.18203854,2651.1,2651.0,0.04861247]
[1727768122739,0.78860876,2651.1,2650.9,0.8318]
[1727768122908,0.78860876,2651.1,2651.0,0.04861247]
[1727768123108,0.78860876,2651.2,2651.0,0.04861247]
[1727768124314,0.78860876,2651.3,2651.1,0.8197]
[1727768124530,0.78860876,2651.3,2651.1,1.45160051]
[1727768124726,0.78860876,2651.3,2651.2,0.05319278]
[1727768125350,0.78860876,2651.4,2651.2,1.6561647]
[1727768125657,0.78860876,2651.4,2651.2,0.05319278]
[1727768126558,0.78860876,2651.3,2651.2,0.05319278]
[1727768126732,0.78860876,2651.3,2651.2,0.67798425]
[1727768126933,0.78860876,2651.3,2651.2,6.31986782]
[1727768127157,0.78860876,2651.6,2651.3,3.77173]
[1727768127363,0.78860876,2651.6,2651.4,2.41937192]
[1727768127523,0.78860876,2651.7,2651.4,2.47229151]
[1727768127723,0.78860876,2651.7,2651.4,3.09668366]
[1727768128353,0.78860876,2651.7,2651.5,4.53294]
[1727768128546,1.18203854,2651.8,2651.5,4.53294]
[1727768128547,0.78860876,2651.6,2651.5,4.53294]
[1727768128819,0.78860876,2651.8,2651.5,4.53294]
[1727768129024,0.78860876,2651.8,2651.6,2.27900233]
[1727768130068,1.18203854,2651.9,2651.6,2.27900233]
[1727768130069,0.78860876,2651.9,2651.7,0.7988]
[1727768130224,0.78860876,2652.0,2651.8,1.60297192]
[1727768131224,0.78860876,2652.0,2651.8,2.66499615]
[1727768132127,1.18203854,2652.2,2651.8,2.66499615]
[1727768132128,0.78860876,2652.1,2651.8,2.66499615]
[1727768132969,0.78860876,2652.1,2651.9,0.7638]
[1727768134442,0.78860876,2652.2,2651.9,0.7638]
[1727768135183,0.78860876,2652.2,2652.0,1.60297192]
[1727768136385,0.78860876,2652.2,2651.9,0.7638]
[1727768136386,4.55906876,2652.2,2651.9,0.7638]
[1727768136547,0.78860876,2652.2,2651.9,0.7638]
[1727768137164,0.78860876,2652.2,2651.9,1.37758819]
[1727768137483,3.77035,2652.3,2651.9,1.37758819]
[1727768137484,4.55895876,2652.3,2651.9,1.37758819]
[1727768137655,3.77047,2652.2,2651.9,0.7638]
[1727768138063,4.55907876,2652.2,2651.9,0.7638]
[1727768141214,0.56546352,2652.1,2651.5,0.7937]
[1727768141373,0.56546352,2652.1,2651.4,19.43]
[1727768141374,0.4712,2651.8,2651.4,19.43]
[1727768141900,3.77125,2651.7,2651.4,19.43]
[1727768142702,3.77132,2651.6,2651.4,19.43]
[1727768143001,3.77117,2651.7,2651.3,0.7937]
[1727768143375,3.77117,2651.7,2651.4,0.09926783]
[1727768144602,4.55977876,2651.7,2651.4,0.09926783]
[1727768146685,3.77131,2651.6,2651.4,0.09926783]
[1727768147097,3.77131,2651.6,2651.1,6.19734192]
[1727768147405,4.55977876,2651.7,2651.5,0.09921125]
[1727768147701,7.63675659,2651.7,2651.6,0.0991393]
[1727768147876,3.86545659,2651.7,2651.1,3.42231211]
[1727768148196,0.78872148,2651.7,2651.6,0.0991393]
[1727768148400,0.78871197,2651.7,2651.6,0.0991393]
[1727768148724,0.78871197,2651.7,2651.2,3.77177]
[1727768149026,0.78871197,2651.7,2651.2,4.86838521]
[1727768149396,0.78871197,2651.7,2651.3,0.09948327]
[1727768149711,0.78871197,2651.6,2651.2,4.86838521]
[1727768149892,0.78871197,2651.7,2651.4,3.87099131]
[1727768150097,0.78871197,2651.7,2651.5,0.7959]
[1727768150301,1.18203854,2651.8,2651.5,0.89523936]
[1727768150302,0.78871197,2651.8,2651.5,0.89523936]
[1727768150507,0.78871197,2651.7,2651.5,0.89523936]
[1727768150901,0.78871197,2651.8,2651.5,6.26958128]
[1727768151220,0.78871197,2651.8,2651.5,6.89653941]
[1727768151633,0.78871197,2651.8,2651.5,5.29356749]
[1727768152234,0.78871197,2651.8,2651.5,0.89523936]
[1727768153619,0.78871197,2651.8,2651.5,6.26957128]
[1727768153797,0.78871197,2651.9,2651.5,6.26957128]
[1727768153980,0.78871197,2651.9,2651.5,4.66659936]
[1727768156621,0.78871197,2651.9,2651.5,10.04093128]
[1727768156824,0.78871197,2651.9,2651.6,4.78291519]
[1727768157129,0.78871197,2652.0,2651.7,2.45546738]
[1727768158217,4.55946197,2652.0,2651.7,0.85249546]
[1727768158619,0.78871197,2652.0,2651.7,0.85249546]
[1727768160379,0.78871197,2652.0,2651.8,0.56353607]
[1727768160825,0.78871197,2652.0,2651.9,0.09905159]
[1727768161429,0.78871197,2652.0,2651.7,4.52445]
[1727768161649,0.78871197,2652.0,2651.7,6.20276759]
[1727768161922,0.78871197,2652.0,2651.8,0.92672352]
[1727768162532,0.78871197,2652.0,2651.8,1.65796458]
[1727768162701,0.78871197,2652.0,2651.8,5.42898458]
[1727768163502,0.78871197,2652.0,2651.8,1.65796458]
[1727768164651,0.78871197,2651.9,2651.8,1.65796458]
[1727768164813,0.78871197,2652.0,2651.8,0.92672352]
[1727768165438,0.78871197,2651.9,2651.8,0.09912352]
[1727768165745,0.78871197,2651.9,2651.6,0.7852]
[1727768166049,0.78871197,2651.9,2651.8,0.09899029]
[1727768166210,0.78871197,2651.9,2651.7,0.09906223]
[1727768166408,0.78871197,2651.9,2651.8,0.09899029]
[1727768166708,0.78871197,2651.9,2651.6,1.77830319]
[1727768166910,0.78871197,2651.9,2651.8,0.09899029]
[1727768167156,0.78871197,2651.9,2651.6,1.77830319]
[1727768167470,0.78981996,2651.8,2651.7,0.55496532]
[1727768168615,0.78981996,2651.8,2651.7,4.32612532]
[1727768169211,0.78981996,2651.8,2651.7,0.55496532]
[1727768169710,0.78981996,2651.8,2651.7,4.32612532]
[1727768172420,1.18203854,2651.9,2651.7,4.32612532]
[1727768172617,1.18203854,2651.9,2651.8,1.04854872]